bitfinex/quotes_SOLUSD_20250915
["timestamp","ask_amount","ask_price","bid_price","bid_amount"]
[1757918394634,0.03,242.06,242.01,33.64]
[1757918394837,0.03,242.06,242.02,0.72]
[1757918395022,61.70588021,242.06,241.93,50.52457868]
[1757918395214,26.0,242.02,241.97,0.72]
[1757918395609,26.0,242.02,241.98,0.72]
[1757918395818,26.0,242.02,241.99,0.69]
[1757918396816,30.13206065,242.01,241.99,0.69]
[1757918397316,30.13206065,242.01,241.97,0.69]
[1757918397517,30.13206065,242.01,241.98,0.69]
[1757918398220,30.13206065,242.01,241.94,50.52457868]
[1757918398520,4.13206065,242.01,241.96,0.69]
[1757918398734,4.13240216,241.99,241.96,184.01457868]
[1757918399036,30.13240216,241.99,241.96,184.01457868]
[1757918399344,26.0,241.99,241.97,0.69]
[1757918399521,26.0,241.99,241.98,0.69]
[1757918399932,58.92,242.02,241.98,0.69]
[1757918400331,63.05192738,242.02,241.98,0.69]
[1757918401041,58.92,242.02,241.99,0.69]
[1757918401549,63.05191011,242.02,241.97,0.69]
[1757918401720,63.05191011,242.02,241.98,0.69]
[1757918401918,26.0,241.99,241.96,183.32457868]
[1757918402334,26.0,241.99,241.96,50.52457868]
[1757918402933,4.13257293,241.98,241.96,50.52457868]
[1757918403445,16.56445656,241.98,241.96,50.52457868]
[1757918403618,26.0,241.98,241.96,50.52457868]
[1757918404947,30.13274372,241.97,241.96,50.52457868]
[1757918406746,30.13274372,241.97,241.96,50.58457868]
[1757918407050,26.0,241.97,241.96,50.58457868]
[1757918408449,26.0,241.97,241.96,0.06]
[1757918408655,41.0329283,241.97,241.96,1e-08]
[1757918408855,52.14543355,241.97,241.96,1e-08]
[1757918410454,85.06543355,241.97,241.96,1e-08]
[1757918412761,85.06543355,241.97,241.91,0.06]
[1757918412762,26.0,241.93,241.91,26.98652227]
[1757918413056,39.92218846,241.92,241.91,26.98652227]
[1757918414463,44.05578634,241.92,241.91,0.06]
[1757918416036,46.68878144,241.92,241.91,0.06]
[1757918416234,49.332691,241.92,241.91,0.06]
[1757918418460,16.412691,241.92,241.91,0.06]
[1757918418659,49.332691,241.92,241.91,26.98652227]
[1757918420742,49.332691,241.92,241.91,27.66652227]
[1757918420934,16.412691,241.92,241.91,27.66652227]
[1757918421139,49.332691,241.92,241.91,27.66652227]
[1757918422068,49.332691,241.92,241.91,26.98652227]
[1757918422871,49.332691,241.92,241.89,0.68]
[1757918422872,26.0,241.9,241.89,26.92652227]
[1757918423161,61.54080087,241.9,241.88,0.06]
[1757918423356,8.32414324,241.89,241.88,0.06]
[1757918423669,12.27909312,241.89,241.88,0.06]
[1757918424037,26.0,241.87,241.86,0.06]
[1757918424287,65.92218846,241.87,241.86,0.06]
[1757918424781,26.0,241.83,241.82,0.06]
[1757918424945,65.90218846,241.83,241.82,0.06]
[1757918425150,69.85895045,241.83,241.82,0.06]
[1757918425648,76.01969589,241.83,241.82,0.06]
[1757918426060,80.15483214,241.83,241.82,0.06]
[1757918426669,80.15483214,241.83,241.8,6.16074544]
[1757918426670,90.52267277,241.83,241.8,0.06]
[1757918426912,26.0,241.8,241.77,0.06]
[1757918427091,68.81382873,241.8,241.77,0.06]
[1757918427286,2.73748432,241.8,241.79,1e-08]
[1757918427493,2.73748432,241.8,241.77,0.06]
[1757918427494,12.27909311,241.79,241.77,0.06]
[1757918427696,32.9,241.78,241.77,0.06]
[1757918427904,42.81382873,241.78,241.77,0.06]
[1757918428105,52.67418501,241.78,241.77,0.06]
[1757918428484,19.77418501,241.78,241.77,0.74]
[1757918428789,45.77418501,241.78,241.77,0.74]
[1757918429000,42.41508451,241.78,241.77,0.74]
[1757918429200,49.31508451,241.78,241.77,0.74]
[1757918430401,16.41508451,241.78,241.77,0.74]
[1757918430585,65.90218846,241.78,241.77,0.74]
[1757918430782,33.00218846,241.78,241.77,0.74]
[1757918431480,26.0,241.78,241.77,0.74]
[1757918431876,37.05582162,241.79,241.77,0.74]
[1757918432097,37.05582162,241.79,241.77,0.06]
[1757918432872,44.05801008,241.79,241.77,0.06]
[1757918434194,7.00218846,241.78,241.77,0.06]
[1757918435298,7.00218846,241.78,241.77,1e-08]
[1757918435606,12.27909312,241.78,241.77,1e-08]
[1757918436012,25.87468713,241.78,241.77,1e-08]
[1757918436217,25.90468713,241.78,241.77,1e-08]
[1757918436419,25.90468713,241.78,241.74,0.2]
[1757918436420,26.0,241.75,241.74,1e-08]
[1757918436731,67.22414324,241.75,241.74,1e-08]
[1757918436917,68.54609802,241.75,241.74,1e-08]
[1757918437295,82.17169203,241.75,241.74,1e-08]
[1757918437505,82.14169203,241.75,241.74,1e-08]
[1757918438311,86.27819668,241.75,241.74,1e-08]
[1757918439288,72.68260267,241.75,241.74,1e-08]
[1757918440022,72.68260267,241.75,241.74,0.69000001]
[1757918440191,39.78260267,241.75,241.74,0.69000001]
[1757918440387,72.68260267,241.75,241.74,0.69000001]
[1757918440598,9.64609802,241.75,241.74,0.69000001]
[1757918440805,39.90218846,241.75,241.74,0.69000001]
[1757918441381,65.90218846,241.75,241.74,0.69000001]
[1757918441819,39.90218846,241.75,241.74,0.69000001]
[1757918442308,65.90218846,241.75,241.74,0.69000001]
[1757918443490,65.90218846,241.75,241.74,1e-08]
[1757918443685,65.90218846,241.75,241.74,0.69000001]
[1757918446114,33.00218846,241.75,241.74,0.69000001]
[1757918446412,65.90218846,241.75,241.74,0.69000001]
[1757918449835,65.90218846,241.75,241.74,1e-08]
[1757918450428,65.90218846,241.75,241.74,0.69000001]
[1757918450726,4.13667576,241.74,241.71,0.06]
[1757918450931,32.9,241.73,241.71,0.06]
[1757918451612,32.9,241.74,241.71,0.06]
[1757918451923,70.03871301,241.75,241.71,0.06]
[1757918452129,65.90218846,241.75,241.71,0.06]
[1757918452331,33.00218846,241.75,241.71,0.06]
[1757918452631,33.00218846,241.75,241.72,0.69]
[1757918453006,37.1387139,241.75,241.72,0.69]
[1757918453215,33.00218846,241.75,241.72,0.69]
[1757918453832,37.13869696,241.75,241.72,0.69]
[1757918454406,33.00218846,241.75,241.73,0.69]
[1757918454608,26.0,241.75,241.74,0.69]
[1757918454917,30.13650465,241.75,241.74,0.69]
[1757918457417,30.13650465,241.75,241.71,0.06]
[1757918457623,32.88,241.74,241.71,0.06]
[1757918457933,32.88,241.74,241.71,0.78]
[1757918459442,4.13684689,241.73,241.71,0.78]
[1757918459736,32.88,241.72,241.71,0.78]
[1757918460820,32.88,241.72,241.71,0.06]
[1757918461322,37.01701803,241.72,241.71,0.06]
[1757918462743,32.88,241.72,241.71,0.78]
[1757918463242,32.88,241.72,241.71,0.06]
[1757918463428,44.01920649,241.72,241.71,0.06]
[1757918463628,7.00218846,241.72,241.71,0.06]
[1757918463831,39.88218846,241.72,241.71,0.78]
[1757918464450,44.01920649,241.72,241.71,0.78]
[1757918465029,44.01920649,241.72,241.71,0.06]
[1757918465757,32.88,241.74,241.71,0.78]
[1757918466353,4.13633355,241.76,241.71,0.78]
[1757918466532,2.72377582,241.76,241.71,0.78]
[1757918466730,32.88,241.75,241.71,4.91718789]
[1757918466933,32.88,241.75,241.72,0.72]
[1757918467150,32.88,241.75,241.73,0.72]
[1757918467342,4.13684689,241.73,241.71,0.06]
[1757918467552,4.13684689,241.73,241.71,0.78]
[1757918468456,32.86,241.72,241.71,0.06]
[1757918468640,35.58582748,241.72,241.71,0.06]
[1757918468954,42.94766499,241.72,241.71,0.06]
[1757918472640,4.13718919,241.71,241.7,0.2]
[1757918472951,4.13718919,241.71,241.7,1e-08]
[1757918472952,17.60473797,241.71,241.7,1e-08]
[1757918473140,5.27690465,241.7,241.69,0.06]
[1757918473453,48.75456964,241.7,241.69,0.06]
[1757918473860,52.13445343,241.7,241.69,0.06]
[1757918474364,48.75456964,241.7,241.69,0.06]
[1757918475343,41.39273213,241.7,241.69,1e-08]
[1757918475542,11.49936904,241.69,241.68,0.06]
[1757918475745,16.07896342,241.69,241.68,0.06]
[1757918476151,26.0,241.66,241.6,0.7]
[1757918476368,26.0,241.62,241.57,0.7]
[1757918476657,35.58582748,241.61,241.57,0.7]
[1757918476859,26.0,241.58,241.56,0.05183566]
[1757918477467,26.0,241.58,241.57,0.7]
[1757918478546,32.86,241.61,241.57,0.7]
[1757918478762,4.13845834,241.64,241.57,4.83956494]
[1757918478966,32.86,241.64,241.58,0.7]
[1757918479267,58.86,241.64,241.58,0.7]
[1757918479565,40.22183751,241.65,241.58,0.7]
[1757918479970,7.36183751,241.65,241.58,0.7]
[1757918480147,7.36183751,241.65,241.59,4.13924417]
[1757918480347,11.50010315,241.65,241.6,0.7]
[1757918480657,7.36183751,241.65,241.6,0.7]
[1757918480853,10.08500362,241.65,241.6,0.7]
[1757918481066,0.03,241.69,241.6,0.7]
[1757918481256,2.75316611,241.69,241.63,0.06]
[1757918481445,6.89072264,241.69,241.64,0.7]
[1757918481650,6.89072264,241.69,241.63,0.06]
[1757918481860,6.89072264,241.69,241.64,0.7]
[1757918482068,2.75316611,241.69,241.64,0.7]
[1757918482251,0.03,241.69,241.65,4.13821642]
[1757918482454,0.03,241.69,241.66,0.7]
[1757918482756,4.16757562,241.69,241.66,0.7]
[1757918483064,4.16757562,241.69,241.67,0.7]
[1757918483266,4.16757562,241.69,241.68,0.7]
[1757918483573,4.16757562,241.69,241.65,0.7]
[1757918483740,58.86,241.68,241.63,0.76]
[1757918483945,26.0,241.64,241.63,0.06]
[1757918484156,73.41914317,241.64,241.63,0.06]
[1757918484955,69.28075549,241.64,241.63,0.06]
[1757918485165,36.41896954,241.64,241.63,0.76]
[1757918485661,33.69750996,241.64,241.63,0.76]
[1757918486455,33.69750996,241.64,241.63,0.06]
[1757918486657,36.94851826,241.64,241.63,0.06]
[1757918487059,69.25851826,241.64,241.63,0.06]
[1757918488347,36.41851826,241.64,241.63,0.06]
[1757918488549,66.53750996,241.64,241.63,0.06]
[1757918488751,66.53750996,241.64,241.63,0.76]
[1757918489170,26.0,241.68,241.63,0.76]
[1757918489374,2.71989499,241.67,241.64,0.7]
[1757918489570,26.0,241.64,241.63,0.06]
[1757918489771,61.55989499,241.64,241.63,0.06]
[1757918489950,58.84,241.64,241.63,0.06]
[1757918490361,62.08908355,241.64,241.63,0.06]
[1757918490577,73.92498119,241.64,241.63,0.06]
[1757918491374,75.58524891,241.64,241.63,0.06]
[1757918492962,85.93121812,241.64,241.56,0.05183566]
[1757918493162,26.0,241.6,241.56,0.05183566]
[1757918493371,69.25970754,241.59,241.56,0.05183566]
[1757918493585,35.55908355,241.58,241.56,0.05183566]
[1757918493762,32.84,241.58,241.56,0.05183566]
[1757918494182,11.84003296,241.59,241.56,0.05183566]
[1757918494484,11.84003296,241.59,241.45,13.59559401]
[1757918494485,26.0,241.55,241.54,0.67]
[1757918494684,58.84,241.55,241.54,0.67]
[1757918495064,32.84,241.56,241.54,0.67]
[1757918495264,26.0,241.58,241.55,0.67]
[1757918495475,26.0,241.56,241.47,13.59559401]
[1757918495780,40.54062399,241.59,241.47,13.59559401]
[1757918495978,66.54062399,241.59,241.49,13.59559401]
[1757918496175,66.54062399,241.59,241.5,0.67]
[1757918496376,66.54062399,241.59,241.51,14.49215352]
[1757918496590,66.54062399,241.59,241.52,0.67]
[1757918498374,66.54062399,241.59,241.54,0.06]
[1757918498776,66.54062399,241.59,241.54,0.74]
[1757918499490,66.54062399,241.59,241.54,0.06]
[1757918499670,70.67993469,241.59,241.54,0.06]
[1757918500479,33.70062399,241.59,241.54,0.06]
[1757918500689,26.0,241.55,241.54,0.06]
[1757918502303,7.70062399,241.59,241.54,0.06]
[1757918502489,26.0,241.58,241.54,4.88006775]
[1757918502796,26.0,241.58,241.55,0.68]
[1757918502991,26.0,241.58,241.54,4.20006775]
[1757918503785,26.0,241.58,241.54,0.06]
[1757918504697,26.0,241.58,241.54,4.88001661]
[1757918504904,26.0,241.61,241.55,0.68]
[1757918505287,58.84,241.61,241.55,0.68]
[1757918505494,26.0,241.61,241.55,0.68]
[1757918505800,26.0,241.61,241.54,4.20001661]
[1757918505987,26.0,241.59,241.54,4.20001661]
[1757918506692,26.0,241.59,241.54,4.88001661]
[1757918506880,26.0,241.59,241.55,0.68]
[1757918508300,26.0,241.59,241.54,4.20001661]
[1757918508611,26.0,241.58,241.54,0.06]
[1757918508782,32.82,241.57,241.54,0.06]
[1757918509796,26.0,241.55,241.54,0.06]
[1757918512505,26.0,241.59,241.54,4.20005178]
[1757918512705,26.0,241.59,241.54,4.88005178]
[1757918513088,4.13891606,241.61,241.54,0.06]
[1757918513089,26.0,241.61,241.54,0.06]
[1757918513277,26.0,241.57,241.54,0.06]
[1757918513598,32.82,241.56,241.54,0.06]
[1757918515732,26.0,241.57,241.54,0.06]
[1757918515884,32.82,241.56,241.54,0.06]
[1757918516079,32.82,241.56,241.54,4.880073]
[1757918516285,58.82,241.57,241.54,4.200073]
[1757918517084,58.82,241.57,241.54,0.06]
[1757918517690,62.95962766,241.57,241.54,0.06]
[1757918517890,2.72716905,241.56,241.54,0.06]
[1757918518682,32.82,241.56,241.54,0.06]
[1757918519186,26.0,241.57,241.54,0.06]
[1757918519387,58.82,241.57,241.54,0.06]
[1757918520092,62.95962528,241.57,241.54,0.06]
[1757918520291,7.61917677,241.56,241.54,0.06]
[1757918520702,10.34766239,241.56,241.54,0.06]
[1757918521320,40.43917677,241.56,241.54,0.06]
[1757918521492,40.43917677,241.56,241.55,0.67]
[1757918521683,40.43917677,241.56,241.54,0.06]
[1757918522203,7.61917677,241.56,241.55,0.67]
[1757918523200,7.61917677,241.56,241.55,4.80992962]
[1757918523599,38.67830777,241.61,241.55,4.80992962]
[1757918523805,38.67830777,241.61,241.56,0.67]
[1757918524119,5.87830777,241.61,241.56,0.67]
[1757918524699,5.87830777,241.61,241.57,0.67]
[1757918524913,5.87830777,241.61,241.58,0.67]
[1757918525212,5.87830777,241.61,241.59,4.80920012]
[1757918525213,0.03,241.61,241.59,4.80920012]
[1757918525416,0.03,241.61,241.6,0.67]
[1757918526820,0.03,241.61,241.6,14.26559401]
[1757918527192,0.03,241.61,241.6,0.67]
[1757918527892,0.03,241.61,241.54,0.06]
[1757918528095,26.0,241.6,241.54,4.19993584]
[1757918528292,26.0,241.59,241.54,4.19993584]
[1757918528527,26.0,241.59,241.54,0.73]
[1757918529189,26.0,241.59,241.54,4.87006616]
[1757918529395,26.0,241.59,241.55,0.7]
[1757918529613,26.0,241.59,241.56,0.7]
[1757918529821,26.0,241.59,241.57,0.7]
[1757918530319,11.75842561,241.59,241.54,0.06]
[1757918530519,36.93924884,241.59,241.54,0.06]
[1757918530696,8.14917677,241.58,241.54,0.06]
[1757918531116,4.13958686,241.57,241.54,0.06]
[1757918531320,11.75876363,241.57,241.54,0.06]
[1757918531495,7.61917677,241.57,241.54,0.06]
[1757918532330,7.61917677,241.57,241.55,0.7]
[1757918532534,7.61917677,241.57,241.56,0.7]
[1757918532728,0.03,241.61,241.56,0.7]
[1757918533019,0.03,241.61,241.56,80.1]
[1757918533195,0.03,241.61,241.57,4.13958686]
[1757918533393,0.03,241.61,241.57,80.1]
[1757918533613,0.03,241.61,241.58,0.7]
[1757918534016,0.03,241.61,241.59,0.7]
[1757918534406,0.03,241.61,241.6,0.7]
[1757918534722,0.03,241.61,241.58,0.7]
[1757918535229,0.03,241.61,241.58,4.83941386]
[1757918535621,0.03,241.61,241.58,4.13941386]
[1757918535801,0.03,241.61,241.59,0.7]
[1757918536931,0.03,241.61,241.57,79.4]
[1757918536932,26.03,241.61,241.57,79.4]
[1757918537229,26.0,241.59,241.57,79.4]
[1757918537798,30.13929977,241.59,241.57,79.4]
[1757918538216,26.0,241.59,241.57,79.4]
[1757918538831,26.0,241.59,241.57,80.1]
[1757918539017,26.0,241.59,241.57,79.4]
[1757918539824,26.0,241.59,241.58,0.7]
[1757918540532,0.03,241.6,241.58,0.7]
[1757918540734,0.03,241.6,241.59,0.7]
[1757918541720,0.03,241.64,241.61,79.34]
[1757918542110,0.03,241.64,241.61,212.14]
[1757918542334,0.03,241.64,241.61,212.84]
[1757918542822,0.03,241.64,241.61,212.14]
[1757918543541,3.28701607,241.64,241.61,212.14]
[1757918543830,4.13855895,241.63,241.61,212.14]
[1757918544210,32.81,241.64,241.61,212.14]
[1757918544413,36.9483928,241.64,241.62,0.7]
[1757918544622,36.9483928,241.64,241.62,79.34]
[1757918544913,2.72673636,241.63,241.62,79.34]
[1757918545314,10.87591313,241.63,241.62,79.34]
[1757918545655,26.0,241.6,241.54,212.2]
[1757918545952,4.13941551,241.58,241.54,79.4]
[1757918546137,4.13941551,241.58,241.54,80.1]
[1757918546814,11.75859228,241.58,241.54,80.1]
[1757918547011,4.13941551,241.58,241.54,80.1]
[1757918547225,7.61917677,241.57,241.54,80.1]
[1757918548520,7.61917677,241.57,241.54,79.4]
[1757918548845,30.13992962,241.55,241.54,79.4]
[1757918551031,28.72543256,241.55,241.54,80.1]
[1757918551228,26.0,241.55,241.54,80.1]
[1757918551951,26.0,241.55,241.54,79.4]
[1757918552948,30.13992962,241.55,241.54,79.4]
[1757918553645,26.0,241.55,241.54,79.4]
[1757918554230,7.61917677,241.57,241.54,80.1]
[1757918554442,7.61917677,241.57,241.55,0.7]
[1757918554933,7.61917677,241.57,241.55,80.04]
[1757918555421,7.61917677,241.57,241.56,0.7]
[1757918556239,7.61917677,241.57,241.55,79.34]
[1757918556438,7.61917677,241.57,241.56,0.7]
[1757918556623,8.14917677,241.57,241.55,79.34]
[1757918556820,15.01445202,241.57,241.55,79.34]
[1757918557421,14.48445202,241.57,241.55,79.34]
[1757918558746,10.34458385,241.57,241.55,80.0]
[1757918558930,7.61917677,241.57,241.56,0.66]
[1757918559125,12.28876363,241.57,241.56,79.34]
[1757918559321,14.48387781,241.57,241.56,79.34]
[1757918560643,10.34429095,241.57,241.56,79.34]
[1757918560945,7.61917677,241.57,241.56,80.0]
[1757918561147,4.16899289,241.61,241.56,80.0]
[1757918561454,0.03,241.61,241.57,0.66]
[1757918561822,4.16894309,241.61,241.58,0.66]
[1757918562028,26.0,241.6,241.59,0.66]
[1757918562447,26.0,241.6,241.59,80.0]
[1757918562724,0.03,241.61,241.59,80.0]
[1757918563057,0.03,241.61,241.6,0.66]
[1757918565945,0.03,241.61,241.6,84.13907284]
[1757918566343,0.03,241.61,241.6,116.89907284]
[1757918566727,0.03,241.61,241.6,130.49466685]
[1757918567838,0.03,241.66,241.65,79.28]
[1757918568325,26.03,241.66,241.6,79.28]
[1757918568542,26.0,241.63,241.58,0.66]
[1757918568730,2.72490899,241.62,241.58,0.66]
[1757918568931,6.86363926,241.62,241.57,79.28]
[1757918569147,4.13873027,241.62,241.58,0.66]
[1757918570255,26.0,241.63,241.58,0.66]
[1757918570939,30.13859836,241.63,241.58,0.66]
[1757918571752,26.0,241.63,241.58,4.13936489]
[1757918572052,58.74,241.64,241.59,0.66]
[1757918572260,58.74,241.64,241.6,0.66]
[1757918573346,58.74,241.64,241.58,83.41936489]
[1757918573533,58.74,241.64,241.61,0.66]
[1757918573737,58.74,241.64,241.58,83.41936489]
[1757918573927,62.87843521,241.64,241.58,79.94]
[1757918574150,30.13843521,241.64,241.58,79.94]
[1757918574343,2.72466334,241.63,241.58,79.94]
[1757918574550,2.72466334,241.63,241.6,0.06]
[1757918574725,2.72466334,241.63,241.6,0.72]
[1757918576243,26.03,241.64,241.61,0.66]
[1757918576449,26.03,241.64,241.62,0.66]
[1757918576657,26.03,241.64,241.6,4.85903682]
[1757918576828,26.03,241.64,241.6,0.72]
[1757918577662,26.03,241.64,241.61,0.68]
[1757918577964,26.03,241.64,241.6,0.06]
[1757918578137,26.03,241.64,241.6,0.74]
[1757918578659,26.03,241.64,241.6,79.34]
[1757918578957,3.25466412,241.63,241.6,79.34]
[1757918579158,32.74,241.62,241.6,0.06]
[1757918579347,2.72466412,241.61,241.6,0.06]
[1757918579537,2.72466412,241.61,241.6,79.34]
[1757918580839,28.72466412,241.61,241.6,79.34]
[1757918581040,58.72,241.61,241.6,79.34]
[1757918582269,7.61917677,241.63,241.6,80.02]
[1757918582454,7.61917677,241.63,241.61,0.68]
[1757918584165,10.34485273,241.63,241.6,79.34]
[1757918584370,33.25,241.62,241.6,79.34]
[1757918584533,7.39457749,241.61,241.6,0.06]
[1757918584733,15.01375426,241.61,241.6,0.06]
[1757918584938,26.0,241.59,241.57,0.06]
[1757918585137,35.44567596,241.58,241.57,0.06]
[1757918585368,35.91567596,241.58,241.57,0.06]
[1757918586164,40.05509147,241.58,241.57,0.06]
[1757918587444,39.58509147,241.58,241.57,0.06]
[1757918587677,47.20426824,241.58,241.57,0.06]
[1757918587867,47.67426824,241.58,241.57,0.06]
[1757918589672,53.52257601,241.58,241.57,0.06]
[1757918590571,56.92692135,241.58,241.57,0.06]
[1757918590776,53.52257601,241.58,241.57,0.06]
[1757918592565,20.33257601,241.58,241.57,0.06]
[1757918592771,46.18748454,241.58,241.57,80.06]
[1757918592949,16.1931605,241.58,241.57,80.06]
[1757918593155,40.33917677,241.58,241.57,80.06]
[1757918593377,42.06485273,241.58,241.57,80.06]
[1757918593593,32.72,241.59,241.57,80.06]
[1757918593882,26.0,241.61,241.58,0.72]
[1757918594065,32.72,241.6,241.59,0.72]
[1757918594265,2.72293409,241.6,241.59,79.28]
[1757918594474,26.0,241.61,241.59,79.28]
[1757918594665,58.72,241.61,241.59,79.28]
[1757918594866,58.72,241.61,241.6,0.72]
[1757918595479,26.0,241.61,241.6,80.0]
[1757918596149,32.72,241.63,241.6,80.0]
[1757918596357,7.57695455,241.64,241.61,0.72]
[1757918596554,40.29695455,241.64,241.61,0.72]
[1757918596754,7.57695455,241.64,241.61,0.72]
[1757918596970,7.57695455,241.64,241.61,80.0]
[1757918597171,40.29695455,241.64,241.62,0.72]
[1757918597372,40.29695455,241.64,241.63,0.72]
[1757918597558,10.30039527,241.64,241.63,0.72]
[1757918597755,0.03,241.64,241.63,80.0]
[1757918602560,0.03,241.64,241.63,0.72]
[1757918604582,0.03,241.67,241.66,79.34]
[1757918604966,0.03,241.67,241.66,80.06]
[1757918605484,0.03,241.67,241.66,84.19804518]
[1757918606380,0.03,241.67,241.66,80.06]
[1757918607086,0.03,241.67,241.66,212.86]
[1757918609008,0.03,241.72,241.69,79.28]
[1757918609172,33.57695455,241.72,241.69,79.28]
[1757918609976,37.71407299,241.72,241.69,79.28]
[1757918610498,0.03,241.7,241.69,79.28]
[1757918611965,26.0,241.68,241.67,79.28]
[1757918613595,26.0,241.68,241.67,80.0]
[1757918614799,26.0,241.68,241.67,84.13787396]
[1757918615499,26.0,241.68,241.67,80.0]
[1757918616069,26.0,241.68,241.67,84.13787396]
[1757918616274,7.57695455,241.7,241.67,84.13787396]
[1757918616586,7.57695455,241.7,241.68,0.72]
[1757918617293,7.57695455,241.7,241.68,79.28]
[1757918617500,7.57695455,241.7,241.68,80.0]
[1757918618196,7.57695455,241.7,241.68,79.28]
[1757918618370,7.57695455,241.7,241.69,0.72]
[1757918618577,7.57695455,241.7,241.69,80.0]
[1757918619613,7.57695455,241.7,241.69,84.13753154]
[1757918619614,0.03,241.7,241.69,84.13753154]
[1757918621594,0.03,241.74,241.72,53.22]
[1757918621977,0.03,241.74,241.73,0.71]
[1757918622376,0.03,241.74,241.73,86.61]
[1757918623009,0.03,241.74,241.73,233.00559401]
[1757918623578,0.03,241.74,241.73,237.1424409]
[1757918623774,0.03,241.74,241.73,233.00559401]
[1757918623978,0.03,241.74,241.73,186.02]
[1757918624180,0.03,241.74,241.73,186.73]
[1757918624392,0.03,241.74,241.73,190.86684689]
[1757918625988,0.03,241.74,241.73,204.4624409]
[1757918628912,0.03,241.79,241.73,204.4624409]
[1757918628913,0.03,241.79,241.78,53.16]
[1757918629411,0.03,241.79,241.78,53.87]
[1757918629582,0.03,241.79,241.78,58.00599139]
[1757918629780,0.03,241.79,241.78,90.68599139]
[1757918629982,0.03,241.79,241.78,104.2815854]
[1757918630300,0.03,241.79,241.78,237.0815854]
[1757918631312,0.03,241.79,241.78,204.4015854]
[1757918631505,0.03,241.79,241.78,237.0815854]
[1757918637413,7.64695455,241.89,241.86,52.94]
[1757918637724,0.47,241.88,241.86,52.94]
[1757918637890,0.47,241.87,241.86,52.94]
[1757918638092,4.60445239,241.87,241.86,52.94]
[1757918639713,26.0,241.84,241.8,52.94]
[1757918639912,26.0,241.84,241.77,52.94]
[1757918639913,26.0,241.8,241.77,52.94]
[1757918640217,0.47,241.79,241.72,13.59559401]
[1757918640517,33.54695455,241.8,241.74,13.59559401]
[1757918640716,33.54695455,241.8,241.75,33.32]
[1757918641016,33.54695455,241.8,241.76,0.66]
[1757918641222,7.54695455,241.8,241.76,0.66]
[1757918642495,7.54695455,241.8,241.76,4.79632567]
[1757918642692,7.54695455,241.8,241.77,0.66]
[1757918642896,7.54695455,241.8,241.76,4.13632567]
[1757918642897,7.54695455,241.8,241.78,0.66]
[1757918643213,4.13445239,241.87,241.79,0.66]
[1757918643418,26.0,241.83,241.77,52.94]
[1757918643725,4.13530725,241.82,241.77,53.6]
[1757918643895,4.13530725,241.82,241.78,0.66]
[1757918644223,34.01695455,241.86,241.79,0.66]
[1757918644420,12.1515805,241.86,241.79,0.66]
[1757918644598,11.6815805,241.86,241.79,0.66]
[1757918644805,0.03,241.8,241.79,0.66]
[1757918645494,0.03,241.8,241.79,14.25559401]
[1757918645722,0.03,241.8,241.79,18.39141434]
[1757918646513,0.03,241.8,241.79,14.25559401]